bitfinex/quotes_SOLUSD_20241118
["timestamp","ask_amount","ask_price","bid_price","bid_amount"]
[1731892987631,0.2,239.23,239.22,10.05717108]
[1731892987804,0.1,239.23,239.22,10.05717108]
[1731892988326,0.2,239.23,239.21,14.6313]
[1731892988810,0.1,239.17,239.15,16.0970602]
[1731892989009,0.1,239.17,239.15,26.5505602]
[1731892989228,0.1,239.17,239.15,10.4535]
[1731892989229,0.1,239.16,239.15,10.4535]
[1731892989532,0.1,239.16,239.15,10.42327]
[1731892989909,0.1,239.13,239.12,4.182]
[1731892990107,0.1,239.1,239.09,10.4562]
[1731892991051,0.1,239.03,239.02,10.459]
[1731892991554,0.1,238.99,238.98,4.1844]
[1731892991953,0.2,238.97,238.96,14.6466]
[1731892992127,0.2,238.99,238.96,10.4619]
[1731892992443,0.2,238.99,238.96,10.40083]
[1731892992650,0.2,238.99,238.96,14.58563]
[1731892992836,0.1,238.97,238.96,14.58563]
[1731892993039,0.2,238.99,238.96,14.58563]
[1731892993290,0.1,238.97,238.96,14.58563]
[1731892993507,0.2,238.97,238.96,14.58563]
[1731892993659,0.2,238.97,238.7,25.136]
[1731892993660,0.2,238.82,238.7,25.136]
[1731892993843,0.2,238.82,238.7,36.33713321]
[1731892994180,0.1,238.8,238.73,16.0970602]
[1731892994347,0.1,238.8,238.7,36.33713321]
[1731892994348,0.1,238.74,238.7,14.6626]
[1731892994545,0.1,238.9,238.7,14.6626]
[1731892994546,0.1,238.71,238.7,14.6626]
[1731892994770,0.2,238.71,238.7,10.4733]
[1731892994961,0.2,238.71,238.64,4.1902]
[1731892995197,0.2,238.71,238.62,26.5734602]
[1731892995199,16.0970602,238.7,238.62,10.4764]
[1731892995349,20.2863602,238.7,238.58,4.1913]
[1731892995555,20.2863602,238.7,238.54,10.48]
[1731892995556,0.2,238.56,238.54,10.48]
[1731892995757,0.1,238.56,238.54,26.5770602]
[1731892995960,0.1,238.56,238.54,10.48]
[1731892996153,0.1,238.55,238.54,10.48]
[1731892996346,0.1,238.56,238.45,1.19855504]
[1731892996347,0.1,238.5,238.48,4.1931]
[1731892996545,0.1,238.5,238.46,10.4836]
[1731892996546,0.2,238.47,238.46,10.4836]
[1731892996971,0.2,238.47,238.45,0.4705112]
[1731892998041,0.1,238.46,238.45,0.4705112]
[1731892998431,0.1,238.47,238.45,0.4705112]
[1731892998636,0.1,238.5,238.47,0.09367462]
[1731892998847,0.1,238.5,238.49,26.33618806]
[1731892999159,0.1,238.5,238.47,26.33618806]
[1731892999330,0.1,238.48,238.47,26.33618806]
[1731892999545,0.1,238.53,238.48,14.92718]
[1731892999844,0.1,238.5,238.49,26.58716806]
[1731893000157,0.1,238.49,238.48,10.483]
[1731893000359,0.1,238.51,238.48,14.6762]
[1731893000529,1.04814048,238.64,238.49,20.0]
[1731893000728,0.1,238.74,238.63,52.67237612]
[1731893000958,0.1,238.82,238.73,26.33618806]
[1731893001255,0.1,238.79,238.67,0.09367462]
[1731893001435,0.1,238.72,238.69,4.1895]
[1731893001633,0.1,238.71,238.68,30.0]
[1731893001954,0.1,238.69,238.68,30.0]
[1731893002338,70.0,239.01,238.58,10.4785]
[1731893002339,0.1,238.61,238.58,10.4785]
[1731893002531,11.3191,238.72,238.58,10.4785]
[1731893002532,0.1,238.65,238.6,26.33618806]
[1731893002730,0.1,238.65,238.62,26.33618806]
[1731893003346,37.55528806,238.72,238.58,14.6699]
[1731893003347,0.1,238.69,238.64,26.33618806]
[1731893003536,0.1,238.72,238.68,26.33618806]
[1731893003747,0.1,238.78,238.71,26.33618806]
[1731893003948,11.2191,238.81,238.69,4.1895]
[1731893003949,0.1,238.76,238.73,26.33618806]
[1731893004362,0.1,238.74,238.73,26.33618806]
[1731893004659,0.1,238.85,238.74,0.34465462]
[1731893004839,0.1,238.83,238.8,26.33618806]
[1731893005046,0.1,238.83,238.75,26.33618806]
[1731893005047,0.1,238.76,238.75,26.33618806]
[1731893005262,0.1,238.74,238.73,26.33618806]
[1731893005969,0.1,238.77,238.73,30.65037806]
[1731893006144,0.1,238.81,238.76,26.33618806]
[1731893006345,0.1,238.83,238.8,26.33618806]
[1731893006655,0.1,238.83,238.82,26.33618806]
[1731893007469,0.1,238.9,238.83,0.25098]
[1731893007761,0.1,238.86,238.83,10.4674]
[1731893007946,0.1,238.84,238.83,14.6544]
[1731893008132,0.1,238.85,238.83,10.4674]
[1731893008334,0.1,238.79,238.77,0.25098]
[1731893008765,0.1,238.77,238.75,30.0]
[1731893008934,0.1,238.71,238.69,10.4737]
[1731893009135,0.1,238.71,238.7,26.33618806]
[1731893009365,0.1,238.71,238.69,10.4737]
[1731893010158,0.1,238.67,238.64,26.33618806]
[1731893010372,0.1,238.63,238.62,36.81298806]
[1731893010848,0.1,238.67,238.62,36.81298806]
[1731893011051,0.1,238.65,238.62,10.4768]
[1731893011250,0.1,238.65,238.64,26.33618806]
[1731893011564,29.4333,238.75,238.66,14.6651]
[1731893011736,0.1,238.75,238.74,26.33618806]
[1731893012445,0.1,238.82,238.76,0.09367462]
[1731893012636,0.1,238.84,238.81,0.25098]
[1731893012835,0.1,238.84,238.83,26.33618806]
[1731893013238,0.1,238.88,238.83,26.33618806]
[1731893013441,0.1,238.88,238.87,26.33618806]
[1731893013646,0.1,238.88,238.81,1.04881707]
[1731893013647,0.1,238.88,238.83,30.52318806]
[1731893013860,0.1,238.84,238.83,30.52318806]
[1731893014056,0.1,238.82,238.8,10.4687]
[1731893014260,0.1,238.82,238.6,68.0013564]
[1731893014261,0.1,238.74,238.73,10.4717]
[1731893014461,0.1,238.77,238.73,40.99668806]
[1731893014669,0.1,238.79,238.76,26.33618806]
[1731893014852,0.1,238.79,238.78,26.33618806]
[1731893015163,0.1,238.79,238.76,26.33618806]
[1731893015361,0.1,238.85,238.78,26.33618806]
[1731893015540,0.1,238.85,238.84,26.33618806]
[1731893015738,0.1,238.85,238.84,30.52308806]
[1731893015953,0.1,238.83,238.82,36.80418806]
[1731893017272,1.14646404,238.91,238.75,10.4709]
[1731893017273,0.1,238.76,238.75,10.4709]
[1731893017861,0.1,238.76,238.75,14.6593]
[1731893018762,0.1,238.76,238.44,26.33618806]
[1731893018763,0.1,238.65,238.62,26.33618806]
[1731893018966,0.1,238.73,238.64,26.33618806]
[1731893019266,0.1,238.73,238.59,0.80001458]
[1731893019267,0.1,238.73,238.72,26.33618806]
[1731893019472,0.1,238.75,238.7,26.33618806]
[1731893019967,0.1,238.75,238.71,4.1891]
[1731893020576,0.1,238.75,238.71,14.662]
[1731893020868,0.1,238.75,238.72,26.33618806]
[1731893021070,0.1,238.72,238.71,14.662]
[1731893021376,0.1,238.72,238.7,26.33618806]
[1731893021665,1.04716288,238.78,238.58,41.9146]
[1731893021666,0.1,238.65,238.64,26.33618806]
[1731893022046,0.1,238.65,238.64,30.52658806]
[1731893022245,0.1,238.76,238.65,0.09367462]
[1731893022446,0.1,238.76,238.71,26.33618806]
[1731893022747,0.1,238.74,238.73,26.33618806]
[1731893023759,0.1,238.76,238.73,26.46167806]
[1731893024089,0.1,238.79,238.75,26.33618806]
[1731893024368,0.1,238.78,238.77,26.58716806]
[1731893024570,0.1,238.8,238.78,0.25098]
[1731893024781,0.1,238.8,238.79,26.33618806]
[1731893025467,0.1,238.8,238.79,30.77486806]
[1731893026145,0.1,238.8,238.79,30.52388806]
[1731893026451,0.1,238.76,238.73,26.33618806]
[1731893026653,26.33618806,238.81,238.58,21.0573]
[1731893026654,0.1,238.72,238.71,26.33618806]
[1731893026857,26.33618806,238.79,238.69,10.4735]
[1731893026858,0.1,238.7,238.69,10.4735]
[1731893027359,0.1,238.67,238.65,4.1902]
[1731893027774,0.1,238.67,238.66,26.33618806]
[1731893028370,0.1,238.69,238.66,26.33618806]
[1731893028752,0.1,238.69,238.68,26.33618806]
[1731893029280,0.1,238.67,238.66,26.33618806]
[1731893030281,0.1,238.67,238.65,14.6657]
[1731893030453,0.1,238.72,238.66,26.33618806]
[1731893030649,0.1,238.72,238.71,26.33618806]
[1731893030850,0.1,238.74,238.71,26.33618806]
[1731893031084,0.1,238.72,238.68,0.09367462]
[1731893031372,0.1,238.72,238.71,26.33618806]
[1731893031579,0.1,238.72,238.71,4.1891]
[1731893032268,0.1,238.7,238.69,4.1894]
[1731893032467,0.1,238.7,238.69,30.52558806]
[1731893033061,0.1,238.62,238.6,26.33618806]
[1731893033273,0.1,238.7,238.59,10.4778]
[1731893033274,0.1,238.6,238.59,10.4778]
[1731893033488,0.1,238.55,238.54,4.1921]
[1731893034666,0.1,238.55,238.53,10.4805]
[1731893034884,0.1,238.55,238.53,41.00898806]
[1731893036169,0.1,238.57,238.54,0.25098]
[1731893036498,0.1,238.58,238.56,26.33618806]
[1731893037184,0.1,238.58,238.54,26.33618806]
[1731893037362,0.1,238.55,238.53,10.4805]
[1731893037569,0.1,238.49,238.48,26.33618806]
[1731893038685,0.1,238.49,238.48,26.58716806]
[1731893038873,0.1,238.49,238.48,4.1932]
[1731893040275,0.1,238.54,238.49,0.09367462]
[1731893040591,0.1,238.54,238.53,26.33618806]
[1731893040772,0.1,238.52,238.51,26.33618806]
[1731893041172,0.1,238.52,238.49,26.33618806]
[1731893041474,0.1,238.5,238.48,4.1932]
[1731893043281,0.1,238.5,238.47,10.4834]
[1731893043968,26.33618806,238.53,238.47,10.4834]
[1731893043969,0.1,238.48,238.47,10.4834]
[1731893044610,0.1,238.46,238.45,0.4705112]
[1731893047274,12.1058,238.8,238.51,0.1]
[1731893047577,6.50593512,238.9,238.51,0.1]
[1731893047578,12.1058,238.88,238.77,0.09367462]
[1731893047773,12.1058,238.88,238.82,26.33618806]
[1731893047972,12.1058,238.88,238.8,26.33618806]
[1731893048285,26.33618806,238.85,238.75,26.33618806]
[1731893048472,0.66533719,238.84,238.77,26.33618806]
[1731893048671,0.1,238.84,238.77,26.33618806]
[1731893048980,0.1,238.81,238.73,26.33618806]
[1731893049190,0.76533719,238.81,238.75,26.33618806]
[1731893049398,0.66533719,238.86,238.77,26.33618806]
[1731893049698,12.1058,238.88,238.81,26.33618806]
[1731893049902,12.1058,238.88,238.83,26.33618806]
[1731893050204,12.77113719,238.88,238.83,26.33618806]
[1731893050501,12.1058,238.88,238.83,26.33618806]
[1731893050873,12.1058,238.88,238.85,26.33618806]
[1731893051589,30.2456,238.89,238.85,30.52278806]
[1731893051998,0.66533719,238.94,238.85,30.52278806]
[1731893051999,0.66533719,238.94,238.87,26.33618806]
[1731893052296,30.2456,238.98,238.92,26.33618806]
[1731893052503,0.1,239.04,238.97,26.33618806]
[1731893053505,0.1,239.04,238.87,0.09367462]
[1731893053506,0.1,239.01,238.93,26.33618806]
[1731893053698,30.2456,239.07,238.99,26.33618806]
[1731893053875,0.66533719,239.06,239.01,26.33618806]
[1731893054191,0.66533719,239.06,238.99,26.33618806]
[1731893054502,0.66533719,239.06,238.93,0.34465462]
[1731893054503,0.66533719,239.06,239.01,26.33618806]
[1731893054998,0.1,239.04,238.95,26.33618806]
[1731893055170,0.66533719,239.04,238.95,26.33618806]
[1731893055691,0.76533719,239.04,238.95,26.33618806]
[1731893056300,0.1,238.99,238.91,26.33618806]
[1731893056507,0.1,238.96,238.87,26.33618806]
[1731893056706,0.2,238.92,238.83,26.33618806]
[1731893056879,27.00152525,238.91,238.81,26.33618806]
[1731893057379,0.66533719,238.91,238.83,26.33618806]
[1731893057579,0.66533719,238.91,238.7,31.42]
[1731893057580,0.66533719,238.91,238.85,26.33618806]
[1731893057992,30.52048806,238.99,238.89,26.33618806]
[1731893058186,0.66533719,238.98,238.91,26.33618806]
[1731893058389,0.66533719,238.99,238.93,26.33618806]
[1731893059205,0.66533719,239.06,238.97,26.33618806]
[1731893059503,0.66533719,239.06,238.92,26.33618806]
[1731893059504,0.66533719,239.06,239.0,26.33618806]
[1731893059701,0.66533719,239.06,239.02,26.33618806]
[1731893060075,12.1058,239.08,239.02,26.33618806]
[1731893060276,12.1058,239.08,239.04,26.33618806]
[1731893062503,0.66533719,239.07,238.99,10.4603]
[1731893062811,26.43618806,239.06,238.96,26.33618806]
[1731893062989,0.66533719,239.05,238.96,26.33618806]
[1731893063903,0.66533719,239.05,238.97,4.1846]
[1731893065003,0.66533719,239.05,238.96,26.33618806]
[1731893065418,0.66533719,239.05,238.96,30.52078806]
[1731893066122,12.1058,239.08,239.02,26.33618806]
[1731893066413,12.1058,239.08,239.04,26.33618806]
[1731893068519,12.1058,239.08,238.98,40.98168806]
[1731893068819,0.66533719,239.07,238.98,40.98168806]
[1731893069041,0.66533719,239.07,239.0,26.33618806]
[1731893069701,0.66533719,239.07,239.0,30.52008806]
[1731893069906,12.1058,239.08,239.02,26.33618806]
[1731893070496,0.66533719,239.07,239.0,40.98028806]
[1731893070794,12.77113719,239.08,239.02,26.33618806]
[1731893070994,12.1058,239.08,239.02,26.33618806]
[1731893071907,26.33618806,239.13,239.04,26.33618806]
[1731893072221,0.66533719,239.12,239.04,26.33618806]
[1731893072426,26.33618806,239.11,239.03,10.4589]
[1731893072727,0.66533719,239.12,239.03,14.6424]
[1731893073121,26.33618806,239.11,239.03,10.4589]
[1731893073316,26.33618806,239.06,238.96,26.33618806]
[1731893073494,26.33618806,239.02,238.93,10.4633]
[1731893073825,0.66533719,239.01,238.93,10.4633]
[1731893074029,4.84923719,239.01,238.93,10.4633]
[1731893074877,26.33618806,239.0,238.91,4.1856]
[1731893075006,12.41713719,238.99,238.9,26.33618806]
[1731893075328,12.41713719,238.99,238.91,4.1856]
[1731893076120,11.7518,238.99,238.94,26.33618806]
[1731893076297,11.7518,238.99,238.96,26.33618806]
[1731893077131,11.7518,239.07,238.98,26.33618806]
[1731893077309,11.7518,239.14,239.06,26.33618806]
[1731893077502,0.66533719,239.13,239.06,26.33618806]
[1731893078004,27.00152525,239.13,239.04,26.33618806]
[1731893078422,11.7518,239.14,239.08,26.33618806]
[1731893078628,11.7518,239.14,239.1,26.33618806]
[1731893079625,11.7518,239.14,239.08,26.33618806]
[1731893079810,11.7518,239.14,239.04,10.4585]
[1731893079811,0.66533719,239.13,239.06,26.33618806]
[1731893080929,26.33618806,239.11,239.04,10.4585]
[1731893081925,26.33618806,239.09,238.99,36.79668806]
[1731893082151,26.33618806,239.07,238.97,30.52068806]
[1731893082448,0.66533719,239.06,238.99,26.33618806]
[1731893082934,4.84843719,239.06,238.97,36.79768806]
[1731893083440,4.84843719,239.06,238.97,40.98228806]
[1731893083923,26.33618806,239.05,238.97,26.33618806]
[1731893084130,0.66533719,239.04,238.95,30.52098806]
[1731893085339,0.66533719,239.04,238.97,26.33618806]
[1731893086219,4.1829,239.07,239.01,26.33618806]
[1731893086445,0.66533719,239.06,239.01,26.33618806]
[1731893086940,0.66533719,239.06,238.99,26.33618806]
[1731893087310,0.66533719,239.06,238.99,30.52038806]
[1731893087716,4.84843719,239.06,238.99,26.33618806]
[1731893091838,0.66533719,239.06,239.01,26.33618806]
[1731893092138,0.66533719,239.1,239.03,26.33618806]
[1731893092445,0.66533719,239.1,239.05,26.33618806]
[1731893092611,0.66533719,239.12,239.05,26.33618806]
[1731893093135,0.66533719,239.12,238.97,0.25098]
[1731893093136,0.66533719,239.12,239.07,26.33618806]
[1731893093342,11.7518,239.14,239.07,26.33618806]
[1731893093343,0.66533719,239.13,239.07,26.33618806]
[1731893093539,12.41713719,239.14,239.09,26.33618806]
[1731893093941,11.7518,239.14,239.11,26.33618806]
[1731893094255,29.01103719,239.16,239.11,26.33618806]
[1731893094450,28.3457,239.16,239.11,26.33618806]
[1731893094613,28.3457,239.16,239.13,26.33618806]
[1731893094816,0.66533719,239.2,239.1,0.25098]
[1731893095018,12.37423719,239.21,239.17,26.33618806]
[1731893095245,16.55473719,239.21,239.15,26.33618806]
[1731893095439,42.89092525,239.21,239.13,26.33618806]
[1731893095618,26.33618806,239.19,239.09,10.4563]
[1731893095821,26.33618806,239.15,239.08,26.33618806]
[1731893096020,0.76533719,239.18,239.03,10.4587]
[1731893096021,0.66533719,239.14,239.1,26.33618806]
[1731893096256,0.66533719,239.16,239.1,26.33618806]
[1731893097219,4.84663719,239.16,239.1,26.33618806]
[1731893097425,0.66533719,239.16,239.1,26.33618806]
[1731893097624,0.66533719,239.17,239.12,26.33618806]
[1731893098751,31.18272525,239.17,239.1,26.33618806]
[1731893099629,31.18272525,239.17,239.02,10.4593]
[1731893099630,26.33618806,239.15,239.02,10.4593]
[1731893099835,26.33618806,239.12,239.03,26.33618806]
[1731893100150,0.66533719,239.11,239.03,26.33618806]
[1731893100442,0.2,239.15,239.02,10.4593]
[1731893100443,0.66533719,239.15,239.02,14.643]
[1731893100632,16.12323827,239.14,239.05,16.12323827]
[1731893100945,20.30523827,239.12,239.03,16.12323827]
[1731893101131,0.66533719,239.11,239.03,16.12323827]
[1731893101536,0.66533719,239.11,239.02,10.4593]
[1731893101537,0.66533719,239.11,239.05,16.12323827]
[1731893102059,0.66533719,239.13,239.07,16.12323827]
[1731893102426,0.66533719,239.15,239.07,16.12323827]
[1731893102635,16.12323827,239.12,239.03,26.58213827]
[1731893102862,0.66533719,239.11,239.03,26.58213827]
[1731893103060,16.12323827,239.1,239.0,4.1839]
[1731893103370,16.12323827,239.1,238.85,29.763]
[1731893103371,16.12323827,239.07,238.97,16.12323827]
[1731893103658,0.66533719,239.06,238.99,16.12323827]
[1731893103856,16.12323827,239.03,238.95,16.12323827]
[1731893104043,0.66533719,239.02,238.95,16.12323827]
[1731893104766,16.12323827,239.01,238.93,16.12323827]
[1731893104929,0.66533719,239.02,238.86,35.5855]
[1731893104930,16.12323827,238.99,238.89,16.12323827]
[1731893105129,16.12323827,238.97,238.89,16.12323827]
[1731893105359,0.66533719,238.96,238.89,16.12323827]
[1731893105660,0.66533719,238.96,238.87,16.12323827]
[1731893105661,16.12323827,238.95,238.87,16.12323827]
[1731893105850,45.32793827,238.93,238.85,16.12323827]
[1731893106035,0.66533719,238.92,238.85,16.12323827]
[1731893106233,26.24530902,238.91,238.83,26.24530902]
[1731893106453,0.66533719,238.9,238.83,26.24530902]
[1731893107057,29.2047,238.93,238.89,26.24530902]
[1731893107356,29.87003719,238.93,238.91,26.24530902]
[1731893107545,29.2047,238.93,238.91,26.24530902]
[1731893107744,29.87003719,238.93,238.91,26.24530902]
[1731893107948,29.87003719,238.93,238.86,26.24530902]
[1731893108140,29.2047,238.93,238.89,26.24530902]
[1731893108339,11.4888,238.94,238.91,26.24530902]
[1731893108566,0.66533719,238.99,238.93,26.24530902]
[1731893109236,0.66533719,238.99,238.82,0.19367462]
[1731893109237,26.91064621,238.99,238.82,0.21916462]
[1731893109554,26.24530902,238.97,238.88,26.24530902]
[1731893109754,0.66533719,238.96,238.88,26.24530902]
[1731893110056,0.66533719,238.96,238.88,30.43130902]
[1731893110369,26.91064621,238.99,238.92,26.24530902]
[1731893110872,0.66533719,238.99,238.92,26.24530902]
[1731893111245,40.6935,239.0,238.94,26.24530902]
[1731893111446,20.9061,239.17,238.89,0.25098]
[1731893111447,0.66533719,239.03,238.98,26.24530902]
[1731893111751,11.4888,239.06,239.01,26.24530902]
[1731893112166,11.4888,239.06,239.02,4.1837]
[1731893112669,29.2047,239.07,239.03,26.24530902]
[1731893113073,29.2047,239.07,239.02,14.643]
[1731893113754,0.66533719,239.06,239.02,10.4593]
[1731893113952,26.24530902,239.05,239.02,10.4593]
[1731893114151,26.24530902,239.03,238.96,10.4616]
[1731893114348,26.24530902,238.99,238.96,10.4616]
[1731893114559,26.24530902,239.01,238.96,10.4616]
[1731893114757,0.66533719,239.0,238.96,10.4616]
[1731893115174,0.66533719,239.0,238.81,6.57270736]
[1731893115175,26.24530902,238.97,238.77,10.4703]
[1731893115378,26.24530902,238.97,238.69,11.7256]
[1731893115379,0.66533719,238.96,238.87,14.6522]
[1731893115600,0.66533719,238.98,238.9,26.24530902]
[1731893116599,11.4888,238.99,238.91,0.12549]
[1731893116876,11.4888,238.99,238.92,26.24530902]
[1731893117065,11.4888,238.99,238.95,26.24530902]
[1731893117266,10.655,239.12,238.93,0.25098]
[1731893117267,0.66533719,239.11,238.99,0.09367462]
[1731893117473,12.1414,239.13,239.08,26.24530902]
[1731893117672,38.38670902,239.21,239.12,26.24530902]
[1731893117885,0.66533719,239.2,239.13,0.25098]
[1731893118081,26.91064621,239.27,239.18,26.24530902]
[1731893118288,0.66533719,239.27,239.18,26.24530902]
[1731893118493,26.24530902,239.25,239.16,26.24530902]
[1731893118812,0.66533719,239.24,239.16,26.24530902]
[1731893118983,26.24530902,239.25,239.17,0.25098]
[1731893119180,26.24530902,239.23,239.14,26.24530902]
[1731893119483,0.5705112,239.28,239.0,68.1969]
[1731893119484,26.24530902,239.17,239.1,0.25098]
[1731893119681,26.24530902,239.13,239.07,10.4569]
[1731893119992,26.24530902,239.11,239.03,4.1835]
[1731893120195,26.24530902,239.11,239.03,14.6424]
[1731893120365,0.66533719,239.15,239.03,14.6424]
[1731893120366,26.24530902,239.09,239.03,10.4589]
[1731893120566,26.24530902,239.11,239.03,14.6424]
[1731893121082,0.66533719,239.1,239.03,14.6424]
[1731893121637,26.24530902,239.11,239.03,14.6424]
[1731893121799,0.66533719,239.1,239.03,14.6424]
[1731893121993,26.24530902,239.11,239.03,14.6424]
[1731893122302,26.24530902,239.05,238.97,10.4615]
[1731893122593,26.24530902,239.03,238.97,14.6461]
[1731893122889,26.24530902,239.06,238.97,14.6461]
[1731893123095,0.66533719,239.05,238.97,14.6461]
[1731893123392,26.24530902,239.06,238.97,14.6461]
[1731893123588,30.42830902,239.06,238.97,14.6461]
[1731893123793,26.24530902,239.04,238.97,10.4615]
[1731893123993,26.24530902,239.02,238.97,10.4615]
[1731893124176,26.24530902,239.02,238.97,14.6461]
[1731893124504,26.24530902,239.04,238.97,14.6461]
[1731893124989,26.24530902,239.06,238.97,40.89140902]
[1731893125297,16.6331,239.12,238.97,40.89140902]
[1731893125298,39.36174621,239.12,239.04,0.25098]
[1731893125601,26.24530902,239.21,239.12,0.25098]
[1731893125772,26.24530902,239.21,239.13,14.6363]
[1731893125973,0.66533719,239.24,239.19,0.25098]
[1731893126189,0.4705112,239.28,239.19,0.25098]
[1731893126379,0.66533719,239.27,239.19,0.25098]
[1731893127797,16.57061479,239.28,239.2,14.6321]
[1731893128000,0.66533719,239.27,239.2,14.6321]
[1731893129473,26.63359661,239.28,239.2,14.6321]
[1731893129787,26.16308541,239.26,239.2,10.4515]
[1731893129985,26.16308541,239.24,239.2,10.4515]
[1731893130187,26.16308541,239.24,239.2,14.6321]
[1731893130493,0.4705112,239.28,239.22,26.16308541]
[1731893131085,0.4705112,239.28,239.23,4.18]
[1731893131766,0.4705112,239.28,239.23,14.6301]
[1731893133401,0.4705112,239.28,239.14,21.0077]
[1731893133402,0.4705112,239.28,239.21,0.25098]
[1731893134410,0.4705112,239.28,239.23,0.25098]
[1731893135096,0.4705112,239.28,239.27,26.16308541]
[1731893135273,0.4705112,239.28,239.27,26.41406541]
[1731893135473,0.4705112,239.28,239.27,26.50774003]
[1731893135870,0.4705112,239.28,239.22,35.532]
[1731893136081,0.4705112,239.28,239.24,26.16308541]
[1731893136274,0.4705112,239.28,239.25,14.87998]
[1731893136470,0.4705112,239.28,239.27,0.25098]
[1731893137900,0.4705112,239.28,239.26,26.16308541]
[1731893138413,0.4705112,239.28,239.27,4.52395462]
[1731893138980,0.4705112,239.28,239.27,30.68704003]
[1731893140073,0.4705112,239.28,239.27,4.43028]
[1731893140280,0.4705112,239.28,239.27,56.85645082]
[1731893140485,0.4705112,239.28,239.27,30.59336541]
[1731893141200,0.4705112,239.28,239.27,4.43028]
[1731893141516,0.4705112,239.28,239.27,30.59336541]
[1731893141798,0.4705112,239.28,239.27,30.68704003]
[1731893142307,0.4705112,239.28,239.27,30.59336541]
[1731893142606,0.4705112,239.28,239.27,30.34238541]
[1731893142811,0.4705112,239.28,239.27,56.69914544]
[1731893143379,0.4705112,239.28,239.27,30.43606003]
[1731893143803,0.4705112,239.28,239.27,30.68704003]
[1731893145997,0.4705112,239.28,239.27,30.34238541]
[1731893146787,0.4705112,239.28,239.25,40.79198541]
[1731893146987,0.4705112,239.28,239.25,14.6289]
[1731893147714,0.4705112,239.28,239.25,40.79198541]
[1731893147883,0.4705112,239.28,239.27,26.16308541]
[1731893148083,0.4705112,239.28,239.27,30.56155003]
[1731893148309,0.4705112,239.28,239.27,20.48545589]
[1731893149288,0.4705112,239.28,239.27,20.61094589]
[1731893150614,0.4705112,239.28,239.27,4.1793]
[1731893151020,0.4705112,239.28,239.27,20.61094589]
[1731893151197,0.4705112,239.28,239.27,20.26629127]
[1731893151594,0.4705112,239.28,239.25,10.4493]
[1731893151799,16.08699127,239.26,239.16,16.708217]
[1731893152013,16.08699127,239.17,239.16,16.708217]
[1731893152317,16.08699127,239.17,239.11,4.1821]
[1731893152508,0.66533719,239.16,239.11,4.1821]
[1731893152706,16.08699127,239.15,239.08,10.4563]
[1731893153893,16.08699127,239.2,239.12,0.09367462]
[1731893154824,16.08699127,239.22,239.13,0.12549]
[1731893154999,56.60119127,239.25,239.17,0.12549]
[1731893155318,0.4705112,239.28,239.16,16.08699127]
[1731893155319,0.4705112,239.28,239.22,16.08699127]
[1731893155525,0.4705112,239.28,239.26,16.08699127]
[1731893155696,0.4705112,239.28,239.23,0.25098]
[1731893155896,0.4705112,239.28,239.25,0.25098]
[1731893156126,0.4705112,239.28,239.24,30.71659127]
[1731893156303,0.4705112,239.28,239.25,0.34465462]
[1731893157497,0.4705112,239.28,239.24,30.71659127]
[1731893157498,0.4705112,239.28,239.27,0.34465462]
[1731893158014,0.4705112,239.28,239.27,4.52395462]
[1731893158523,0.4705112,239.28,239.27,4.62395462]
[1731893158728,0.4705112,239.28,239.27,20.71094589]
[1731893158919,0.4705112,239.28,239.27,4.62395462]
[1731893159530,0.4705112,239.28,239.27,20.71094589]
[1731893159729,0.4705112,239.28,239.27,4.62395462]
[1731893160023,0.4705112,239.28,239.27,28.50083862]
[1731893160415,0.4705112,239.28,239.27,44.58782989]
[1731893161718,0.0943112,239.28,239.27,44.58782989]
[1731893161916,0.0943112,239.28,239.27,28.50083862]
[1731893162624,0.0943112,239.28,239.27,4.1793]
[1731893162820,0.0943112,239.28,239.27,20.26629127]
[1731893163716,0.0943112,239.28,239.27,20.35996589]
[1731893163916,0.0943112,239.28,239.27,20.61094589]
[1731893164410,0.0943112,239.28,239.27,60.47482116]
[1731893164619,0.0943112,239.28,239.27,60.47482089]
[1731893165917,16.08699127,239.42,239.35,16.08699127]
[1731893166116,16.08699127,239.42,239.33,16.08699127]
[1731893166312,16.08699127,239.4,239.32,0.21916462]